[Event "Late-Titled-Tuesday-Blitz-May-28-2024"]
[Site "Chess.com"]
[Date "2024.05.28"]
[Round "2"]
[White "jlf287"]
[Black "RandomNoob04"]
[Result "0-1"]
[WhiteElo "2512"]
[BlackElo "2772"]
[TimeControl "180+1"]
[EndTime "14:18:08 PDT"]
[Termination "RandomNoob04 won by resignation"]

1. d4 {[%clk 0:03:00]} 1... Nf6 {[%clk 0:03:00.1]} 2. c4 {[%clk 0:02:59.7]} 2...
c5 {[%clk 0:03:00.6]} 3. d5 {[%clk 0:02:59.3]} 3... b5 {[%clk 0:03:00.9]} 4.
cxb5 {[%clk 0:02:59.3]} 4... a6 {[%clk 0:03:01.6]} 5. g4 {[%clk 0:02:59.6]} 5...
axb5 {[%clk 0:02:53.3]} 6. g5 {[%clk 0:02:58]} 6... Ne4 {[%clk 0:02:53.5]} 7.
Bg2 {[%clk 0:02:49.9]} 7... Qa5+ {[%clk 0:02:43.7]} 8. Kf1 {[%clk 0:02:48.9]}
8... Nd6 {[%clk 0:02:41.5]} 9. e4 {[%clk 0:02:46.9]} 9... g6 {[%clk 0:02:34.3]}
10. e5 {[%clk 0:02:44.8]} 10... Nf5 {[%clk 0:02:34.9]} 11. Nf3 {[%clk
0:02:40.4]} 11... Bg7 {[%clk 0:02:32.4]} 12. h4 {[%clk 0:02:39.8]} 12... h5
{[%clk 0:02:30.4]} 13. Kg1 {[%clk 0:02:23.7]} 13... O-O {[%clk 0:02:29.2]} 14.
Nc3 {[%clk 0:02:23.4]} 14... Bb7 {[%clk 0:02:23.1]} 15. Ne4 {[%clk 0:02:13.9]}
15... e6 {[%clk 0:02:13.9]} 16. Nf6+ {[%clk 0:01:57.6]} 16... Bxf6 {[%clk
0:02:13.8]} 17. gxf6 {[%clk 0:01:56.2]} 17... Bxd5 {[%clk 0:02:14.4]} 18. Rh3
{[%clk 0:01:41.8]} 18... Nc6 {[%clk 0:02:10.1]} 19. Bd2 {[%clk 0:01:35.4]} 19...
Qa4 {[%clk 0:02:09.8]} 20. Qc1 {[%clk 0:01:29.1]} 20... Qg4 {[%clk 0:02:07.3]}
21. Bc3 {[%clk 0:01:14.4]} 21... b4 {[%clk 0:02:02.8]} 22. Rg3 {[%clk
0:01:13.9]} 22... Nxg3 {[%clk 0:01:58.7]} 23. fxg3 {[%clk 0:01:13.7]} 23... g5
{[%clk 0:01:42.2]} 24. Be1 {[%clk 0:00:58.6]} 24... Nxe5 {[%clk 0:01:08.1]} 25.
Nh2 {[%clk 0:00:28.7]} 25... Qd4+ {[%clk 0:01:07.5]} 26. Bf2 {[%clk 0:00:29]}
26... Qxf2+ {[%clk 0:01:07.9]} 27. Kxf2 {[%clk 0:00:24.6]} 27... Nd3+ {[%clk
0:01:08.5]} 28. Ke3 {[%clk 0:00:20.9]} 28... Nxc1 {[%clk 0:01:09.4]} 29. Bxd5
{[%clk 0:00:21]} 29... exd5 {[%clk 0:01:08.4]} 30. Rxc1 {[%clk 0:00:20.4]} 30...
Rfe8+ {[%clk 0:01:08.3]} 31. Kf3 {[%clk 0:00:20.4]} 31... g4+ {[%clk 0:01:03.8]}
32. Kf4 {[%clk 0:00:20.8]} 32... c4 {[%clk 0:01:04.4]} 33. Rd1 {[%clk
0:00:19.6]} 33... Rxa2 {[%clk 0:00:55.1]} 34. Rxd5 {[%clk 0:00:18.8]} 34... Rxb2
{[%clk 0:00:50.1]} 35. Rg5+ {[%clk 0:00:18.5]} 35... Kf8 {[%clk 0:00:50.6]} 36.
Rxh5 {[%clk 0:00:18.6]} 36... Rf2+ {[%clk 0:00:51.1]} 37. Kxg4 {[%clk
0:00:15.5]} 37... Rxf6 {[%clk 0:00:50.6]} 38. Rb5 {[%clk 0:00:10.7]} 38... b3
{[%clk 0:00:48]} 39. h5 {[%clk 0:00:11.2]} 39... Re2 {[%clk 0:00:44.1]} 40. Nf3
{[%clk 0:00:06.1]} 40... Re4+ {[%clk 0:00:43.6]} 41. Kh3 {[%clk 0:00:04.1]}
41... Rxf3 {[%clk 0:00:43.3]} 42. h6 {[%clk 0:00:04.6]} 42... Kg8 {[%clk
0:00:37.9]} 0-1

[Event "Late-Titled-Tuesday-Blitz-May-28-2024"]
[Site "Chess.com"]
[Date "2024.05.28"]
[Round "2"]
[White "ValeriyGrinev"]
[Black "LastGladiator1"]
[Result "0-1"]
[WhiteElo "2588"]
[BlackElo "2989"]
[TimeControl "180+1"]
[EndTime "14:18:13 PDT"]
[Termination "LastGladiator1 won by checkmate"]

1. d4 {[%clk 0:03:00.9]} 1... Nf6 {[%clk 0:02:59.2]} 2. c4 {[%clk 0:03:00.9]}
2... g6 {[%clk 0:02:59.6]} 3. Nc3 {[%clk 0:03:00.2]} 3... Bg7 {[%clk 0:02:59.7]}
4. e4 {[%clk 0:03:00.3]} 4... d6 {[%clk 0:03:00.2]} 5. Be2 {[%clk 0:02:59.9]}
5... O-O {[%clk 0:03:00.4]} 6. Nf3 {[%clk 0:02:59.5]} 6... e5 {[%clk 0:02:59.7]}
7. O-O {[%clk 0:02:58.5]} 7... h6 {[%clk 0:02:59.8]} 8. Be3 {[%clk 0:02:47.7]}
8... Ng4 {[%clk 0:02:57.4]} 9. Bc1 {[%clk 0:02:47.5]} 9... Nc6 {[%clk
0:02:37.2]} 10. d5 {[%clk 0:02:38.9]} 10... Ne7 {[%clk 0:02:31.1]} 11. Ne1
{[%clk 0:02:38.6]} 11... f5 {[%clk 0:02:28.8]} 12. f3 {[%clk 0:02:35.3]} 12...
Nf6 {[%clk 0:02:28.9]} 13. Be3 {[%clk 0:02:35]} 13... f4 {[%clk 0:02:28.7]} 14.
Bf2 {[%clk 0:02:35.2]} 14... g5 {[%clk 0:02:29.4]} 15. c5 {[%clk 0:02:35.3]}
15... h5 {[%clk 0:02:29.1]} 16. a4 {[%clk 0:02:34.9]} 16... g4 {[%clk
0:02:29.1]} 17. Kh1 {[%clk 0:02:27.8]} 17... Ng6 {[%clk 0:02:27.3]} 18. a5
{[%clk 0:02:26.1]} 18... dxc5 {[%clk 0:02:15.7]} 19. Bxc5 {[%clk 0:02:22.6]}
19... Ne8 {[%clk 0:02:16.2]} 20. fxg4 {[%clk 0:02:15.2]} 20... hxg4 {[%clk
0:01:52.2]} 21. Bxg4 {[%clk 0:02:16.1]} 21... Rf6 {[%clk 0:01:42.9]} 22. Rc1
{[%clk 0:01:54.3]} 22... Nh4 {[%clk 0:01:39.4]} 23. Bxc8 {[%clk 0:01:49.9]}
23... Rxc8 {[%clk 0:01:33]} 24. Nf3 {[%clk 0:01:47.9]} 24... Rh6 {[%clk
0:01:31.3]} 25. Bxa7 {[%clk 0:01:34.4]} 25... Ra8 {[%clk 0:01:17.6]} 26. Bf2
{[%clk 0:01:32.3]} 26... Ng6 {[%clk 0:01:06.9]} 27. b4 {[%clk 0:01:28]} 27...
Nf6 {[%clk 0:01:06.8]} 28. Ng5 {[%clk 0:01:24.1]} 28... Nh5 {[%clk 0:00:56.2]}
29. Ne6 {[%clk 0:01:22.6]} 29... Qd7 {[%clk 0:00:50.7]} 30. Kg1 {[%clk
0:01:19.9]} 30... Bf6 {[%clk 0:00:29.1]} 31. Na4 {[%clk 0:01:15.9]} 31... Rc8
{[%clk 0:00:24.6]} 32. Qc2 {[%clk 0:00:58.3]} 32... Qh7 {[%clk 0:00:19.9]} 33.
Nb6 {[%clk 0:00:51]} 33... Re8 {[%clk 0:00:11.7]} 34. Qxc7 {[%clk 0:00:48.1]}
34... Be7 {[%clk 0:00:08.5]} 35. Nc8 {[%clk 0:00:32.6]} 35... f3 {[%clk
0:00:08.1]} 36. Nxe7+ {[%clk 0:00:25.2]} 36... Nxe7 {[%clk 0:00:09]} 37. g3
{[%clk 0:00:20.1]} 37... Nf4 {[%clk 0:00:09.2]} 38. Qd7 {[%clk 0:00:16]} 38...
Ne2+ {[%clk 0:00:08.9]} 39. Kh1 {[%clk 0:00:15.1]} 39... Rxh2# {[%clk
0:00:09.8]} 0-1

[Event "Late-Titled-Tuesday-Blitz-May-28-2024"]
[Site "Chess.com"]
[Date "2024.05.28"]
[Round "2"]
[White "MKlose11"]
[Black "artin10862"]
[Result "0-1"]
[WhiteElo "2603"]
[BlackElo "3029"]
[TimeControl "180+1"]
[EndTime "14:18:15 PDT"]
[Termination "artin10862 won by resignation"]

1. e4 {[%clk 0:02:44.2]} 1... e5 {[%clk 0:02:57.2]} 2. Nf3 {[%clk 0:02:42.5]}
2... Nc6 {[%clk 0:02:57]} 3. d4 {[%clk 0:02:43.4]} 3... exd4 {[%clk 0:02:55.5]}
4. Bc4 {[%clk 0:02:43.4]} 4... Nf6 {[%clk 0:02:51.7]} 5. O-O {[%clk 0:02:41.8]}
5... Nxe4 {[%clk 0:02:47.3]} 6. Re1 {[%clk 0:02:41]} 6... d5 {[%clk 0:02:47.9]}
7. Bxd5 {[%clk 0:02:40.4]} 7... Qxd5 {[%clk 0:02:37.3]} 8. Nc3 {[%clk
0:02:33.7]} 8... Qh5 {[%clk 0:01:44.2]} 9. Nxe4 {[%clk 0:02:33.1]} 9... Be7
{[%clk 0:01:42.6]} 10. Bg5 {[%clk 0:02:33.3]} 10... O-O {[%clk 0:01:32.3]} 11.
Bxe7 {[%clk 0:02:33.4]} 11... Nxe7 {[%clk 0:01:32.7]} 12. Nxd4 {[%clk 0:02:34]}
12... Qh6 {[%clk 0:01:25.7]} 13. Qd2 {[%clk 0:02:25.6]} 13... Qb6 {[%clk
0:01:21.9]} 14. c4 {[%clk 0:02:13.1]} 14... Nf5 {[%clk 0:01:16.3]} 15. c5 {[%clk
0:02:02.5]} 15... Qg6 {[%clk 0:01:13]} 16. Nxf5 {[%clk 0:02:02.4]} 16... Bxf5
{[%clk 0:01:12.8]} 17. Ng3 {[%clk 0:02:02.4]} 17... Be6 {[%clk 0:01:02.3]} 18.
Qf4 {[%clk 0:02:02.3]} 18... Rac8 {[%clk 0:00:58.2]} 19. a3 {[%clk 0:01:56.8]}
19... Qc2 {[%clk 0:00:54.3]} 20. b4 {[%clk 0:01:55.3]} 20... Rfd8 {[%clk
0:00:54.6]} 21. h3 {[%clk 0:01:51]} 21... h6 {[%clk 0:00:51.9]} 22. Rac1 {[%clk
0:01:39.9]} 22... Qb2 {[%clk 0:00:50.7]} 23. Qe3 {[%clk 0:01:33.7]} 23... Rd5
{[%clk 0:00:44.2]} 24. Rcd1 {[%clk 0:01:27.6]} 24... Rcd8 {[%clk 0:00:43]} 25.
Rxd5 {[%clk 0:01:24.2]} 25... Rxd5 {[%clk 0:00:43.9]} 26. Ne2 {[%clk 0:01:21.4]}
26... Re5 {[%clk 0:00:37.3]} 27. Qd3 {[%clk 0:01:11.8]} 27... Bf5 {[%clk
0:00:36.7]} 28. Qd8+ {[%clk 0:01:08.8]} 28... Kh7 {[%clk 0:00:36.7]} 29. Qd1
{[%clk 0:01:08]} 29... Qxa3 {[%clk 0:00:33.7]} 30. Nd4 {[%clk 0:01:08.2]} 30...
Rd5 {[%clk 0:00:29.2]} 31. Qb3 {[%clk 0:00:41.9]} 31... Qxb3 {[%clk 0:00:26.6]}
32. Nxb3 {[%clk 0:00:42.8]} 32... b6 {[%clk 0:00:23.8]} 33. g4 {[%clk
0:00:35.6]} 33... Be6 {[%clk 0:00:23.3]} 34. Re3 {[%clk 0:00:31]} 34... Rd1+
{[%clk 0:00:19.1]} 35. Kg2 {[%clk 0:00:31.3]} 35... Rb1 {[%clk 0:00:19.7]} 36.
Nd4 {[%clk 0:00:30.8]} 36... Bd5+ {[%clk 0:00:20.4]} 37. Kg3 {[%clk 0:00:31]}
37... Rxb4 {[%clk 0:00:21.3]} 38. Nf5 {[%clk 0:00:29.1]} 38... Be6 {[%clk
0:00:21.3]} 39. Nh4 {[%clk 0:00:26.5]} 39... bxc5 {[%clk 0:00:20.5]} 40. f4
{[%clk 0:00:26]} 40... Rb3 {[%clk 0:00:18]} 41. Kf3 {[%clk 0:00:25]} 41... a5
{[%clk 0:00:18]} 42. f5 {[%clk 0:00:24.4]} 42... Bd5+ {[%clk 0:00:17.7]} 43. Ke2
{[%clk 0:00:25]} 43... Rxe3+ {[%clk 0:00:16.7]} 44. Kxe3 {[%clk 0:00:25.3]}
44... a4 {[%clk 0:00:17.3]} 0-1

[Event "Late-Titled-Tuesday-Blitz-May-28-2024"]
[Site "Chess.com"]
[Date "2024.05.28"]
[Round "2"]
[White "juancruzarias"]
[Black "Boninknights"]
[Result "1/2-1/2"]
[WhiteElo "2663"]
[BlackElo "2409"]
[TimeControl "180+1"]
[EndTime "14:18:15 PDT"]
[Termination "Game drawn by repetition"]

1. d4 {[%clk 0:03:00.9]} 1... Nf6 {[%clk 0:02:58.8]} 2. Nf3 {[%clk 0:03:00.7]}
2... d6 {[%clk 0:02:58]} 3. e3 {[%clk 0:02:58.2]} 3... g6 {[%clk 0:02:57]} 4.
Be2 {[%clk 0:02:57.4]} 4... Bg7 {[%clk 0:02:56.6]} 5. O-O {[%clk 0:02:57.1]}
5... O-O {[%clk 0:02:56.4]} 6. b3 {[%clk 0:02:57.4]} 6... b6 {[%clk 0:02:55.6]}
7. Bb2 {[%clk 0:02:56.9]} 7... Bb7 {[%clk 0:02:55]} 8. c4 {[%clk 0:02:56.7]}
8... e6 {[%clk 0:02:54]} 9. Nc3 {[%clk 0:02:56.6]} 9... c5 {[%clk 0:02:51]} 10.
Qc2 {[%clk 0:02:55.9]} 10... Nbd7 {[%clk 0:02:47.9]} 11. Rfd1 {[%clk 0:02:55.1]}
11... a6 {[%clk 0:02:47.1]} 12. dxc5 {[%clk 0:02:55.2]} 12... Nxc5 {[%clk
0:02:46.2]} 13. Nd4 {[%clk 0:02:55]} 13... Qc7 {[%clk 0:02:41.8]} 14. Bf3 {[%clk
0:02:54.1]} 14... Rac8 {[%clk 0:02:34.4]} 15. Qe2 {[%clk 0:02:51.8]} 15... Rfd8
{[%clk 0:02:31.7]} 16. Rac1 {[%clk 0:02:50.3]} 16... Nfe4 {[%clk 0:02:24.6]} 17.
Nxe4 {[%clk 0:02:50.3]} 17... Nxe4 {[%clk 0:02:23.2]} 18. Ba1 {[%clk 0:02:48.4]}
18... Qb8 {[%clk 0:02:19.1]} 19. h3 {[%clk 0:02:48.2]} 19... Qa8 {[%clk
0:01:58.5]} 20. h4 {[%clk 0:02:46.6]} 20... d5 {[%clk 0:01:54.5]} 21. cxd5
{[%clk 0:02:44.4]} 21... Bxd5 {[%clk 0:01:53.1]} 22. h5 {[%clk 0:02:41.8]} 22...
b5 {[%clk 0:01:49.9]} 23. hxg6 {[%clk 0:02:41.6]} 23... hxg6 {[%clk 0:01:48.2]}
24. Bb2 {[%clk 0:02:36.5]} 24... b4 {[%clk 0:01:45.6]} 25. Bxe4 {[%clk
0:02:35.7]} 25... Bxe4 {[%clk 0:01:44.4]} 26. f3 {[%clk 0:02:31.6]} 26... Bb7
{[%clk 0:01:42.2]} 27. Rxc8 {[%clk 0:02:16.5]} 27... Rxc8 {[%clk 0:01:39.2]} 28.
Qd2 {[%clk 0:02:12.8]} 28... a5 {[%clk 0:01:35.9]} 29. Ne2 {[%clk 0:02:11.7]}
29... Bxb2 {[%clk 0:01:23.1]} 30. Qxb2 {[%clk 0:02:12.6]} 30... Bxf3 {[%clk
0:01:21.4]} 31. gxf3 {[%clk 0:02:10.1]} 31... Qxf3 {[%clk 0:01:20.4]} 32. Qd2
{[%clk 0:02:05.3]} 32... Rc5 {[%clk 0:01:14.3]} 33. Nf4 {[%clk 0:01:39.1]} 33...
Rg5+ {[%clk 0:01:08.8]} 34. Kh2 {[%clk 0:01:39.7]} 34... Qg3+ {[%clk 0:01:03.8]}
35. Kh1 {[%clk 0:01:37.6]} 35... e5 {[%clk 0:00:57.3]} 36. Ng2 {[%clk
0:01:22.3]} 36... Rh5+ {[%clk 0:00:53.5]} 37. Kg1 {[%clk 0:01:22.6]} 37... Qh2+
{[%clk 0:00:51.7]} 38. Kf1 {[%clk 0:01:19.3]} 38... Rf5+ {[%clk 0:00:50.4]} 39.
Ke2 {[%clk 0:01:10.1]} 39... Qxg2+ {[%clk 0:00:48.1]} 40. Kd3 {[%clk 0:01:10.8]}
40... Qxd2+ {[%clk 0:00:41.3]} 41. Rxd2 {[%clk 0:01:11.7]} 41... g5 {[%clk
0:00:39.9]} 42. Ke4 {[%clk 0:01:12.1]} 42... Rf1 {[%clk 0:00:37.3]} 43. Kxe5
{[%clk 0:01:05.8]} 43... Kg7 {[%clk 0:00:37.2]} 44. Rd5 {[%clk 0:00:58.1]} 44...
Kg6 {[%clk 0:00:34.6]} 45. Ke4 {[%clk 0:00:58.2]} 45... f5+ {[%clk 0:00:32.9]}
46. Ke5 {[%clk 0:00:56.3]} 46... g4 {[%clk 0:00:31.9]} 47. Rd8 {[%clk
0:00:56.2]} 47... Kg5 {[%clk 0:00:21.6]} 48. Rh8 {[%clk 0:00:56.1]} 48... g3
{[%clk 0:00:20.7]} 49. e4 {[%clk 0:00:52.4]} 49... fxe4 {[%clk 0:00:19.9]} 50.
Kxe4 {[%clk 0:00:51.6]} 50... Kg4 {[%clk 0:00:19.4]} 51. Rg8+ {[%clk 0:00:51.6]}
51... Kh3 {[%clk 0:00:19]} 52. Rh8+ {[%clk 0:00:52.4]} 52... Kg4 {[%clk
0:00:18.6]} 53. Ke3 {[%clk 0:00:53.3]} 53... g2 {[%clk 0:00:17.5]} 54. Rg8+
{[%clk 0:00:54]} 54... Kh3 {[%clk 0:00:17.3]} 55. Rh8+ {[%clk 0:00:54.5]} 55...
Kg3 {[%clk 0:00:17.2]} 56. Rg8+ {[%clk 0:00:55]} 56... Kh2 {[%clk 0:00:16.3]}
57. Rh8+ {[%clk 0:00:55.7]} 57... Kg3 {[%clk 0:00:16.2]} 58. Rg8+ {[%clk
0:00:55.7]} 58... Kh2 {[%clk 0:00:16.1]} 59. Rh8+ {[%clk 0:00:56.4]} 59... Kg3
{[%clk 0:00:15.9]} 1/2-1/2

[Event "Late-Titled-Tuesday-Blitz-May-28-2024"]
[Site "Chess.com"]
[Date "2024.05.28"]
[Round "2"]
[White "atalz0"]
[Black "trriinu"]
[Result "1-0"]
[WhiteElo "2502"]
[BlackElo "2228"]
[TimeControl "180+1"]
[EndTime "14:18:15 PDT"]
[Termination "atalz0 won on time"]

1. d4 {[%clk 0:03:00.9]} 1... d5 {[%clk 0:02:59.9]} 2. c4 {[%clk 0:03:00.9]}
2... e5 {[%clk 0:02:55.3]} 3. dxe5 {[%clk 0:03:00.3]} 3... d4 {[%clk 0:02:56.2]}
4. Nf3 {[%clk 0:03:00.5]} 4... Nc6 {[%clk 0:02:56.4]} 5. a3 {[%clk 0:03:00.7]}
5... Nge7 {[%clk 0:02:56.5]} 6. b4 {[%clk 0:02:59.6]} 6... Ng6 {[%clk
0:02:56.6]} 7. Bb2 {[%clk 0:02:55.4]} 7... a5 {[%clk 0:02:53.6]} 8. b5 {[%clk
0:02:53]} 8... Ncxe5 {[%clk 0:02:53.9]} 9. Nxe5 {[%clk 0:02:47.5]} 9... Nxe5
{[%clk 0:02:54.8]} 10. Bxd4 {[%clk 0:02:46.4]} 10... Nxc4 {[%clk 0:02:52.7]} 11.
e3 {[%clk 0:02:44]} 11... Nd6 {[%clk 0:02:45.3]} 12. Bd3 {[%clk 0:02:13.2]}
12... Qg5 {[%clk 0:02:40.8]} 13. O-O {[%clk 0:01:56.3]} 13... Bg4 {[%clk
0:02:14.8]} 14. f3 {[%clk 0:01:47.9]} 14... Bh3 {[%clk 0:02:12.5]} 15. Ra2
{[%clk 0:01:38.2]} 15... Be6 {[%clk 0:01:56.6]} 16. f4 {[%clk 0:01:17]} 16...
Qh6 {[%clk 0:01:47.4]} 17. Rd2 {[%clk 0:01:09.4]} 17... Be7 {[%clk 0:01:25.8]}
18. f5 {[%clk 0:00:51.4]} 18... Bd5 {[%clk 0:01:25.5]} 19. Nc3 {[%clk
0:00:40.3]} 19... Bc4 {[%clk 0:01:08.7]} 20. Qg4 {[%clk 0:00:33.5]} 20... f6
{[%clk 0:00:33.9]} 21. Ne4 {[%clk 0:00:17.3]} 21... Bxd3 {[%clk 0:00:27.3]} 22.
Rxd3 {[%clk 0:00:16.9]} 22... O-O-O {[%clk 0:00:06.3]} 23. Rf3 {[%clk
0:00:13.2]} 23... Nc4 {[%clk 0:00:04.2]} 24. Rh3 {[%clk 0:00:12.3]} 24... Nxe3
{[%clk 0:00:03.2]} 25. Rdxe3 {[%clk 0:00:08.9]} 25... Rxd4 {[%clk 0:00:03.3]}
26. Rxh6 {[%clk 0:00:08.6]} 26... gxh6 {[%clk 0:00:03.7]} 27. h3 {[%clk
0:00:08.4]} 27... Rhd8 {[%clk 0:00:03.3]} 28. Qg7 {[%clk 0:00:08]} 28... Bf8
{[%clk 0:00:02.5]} 29. Qxf6 {[%clk 0:00:07.7]} 29... Rd1+ {[%clk 0:00:02.2]} 30.
Kh2 {[%clk 0:00:07.6]} 30... Re8 {[%clk 0:00:01.5]} 31. Qf7 {[%clk 0:00:07.4]}
31... Red8 {[%clk 0:00:01.5]} 32. Qe6+ {[%clk 0:00:07.1]} 1-0

[Event "Late-Titled-Tuesday-Blitz-May-28-2024"]
[Site "Chess.com"]
[Date "2024.05.28"]
[Round "2"]
[White "ahkashefi2800"]
[Black "sergiochess83"]
[Result "0-1"]
[WhiteElo "2560"]
[BlackElo "2886"]
[TimeControl "180+1"]
[EndTime "14:18:18 PDT"]
[Termination "sergiochess83 won on time"]

1. d4 {[%clk 0:03:00]} 1... Nf6 {[%clk 0:02:49.5]} 2. Nf3 {[%clk 0:02:59.1]}
2... d5 {[%clk 0:02:47.6]} 3. c4 {[%clk 0:02:57.6]} 3... c6 {[%clk 0:02:47.3]}
4. Nc3 {[%clk 0:02:57.2]} 4... dxc4 {[%clk 0:02:47.1]} 5. a4 {[%clk 0:02:54.9]}
5... Bf5 {[%clk 0:02:47]} 6. e3 {[%clk 0:02:54.4]} 6... e6 {[%clk 0:02:46.6]} 7.
Bxc4 {[%clk 0:02:54.3]} 7... Bb4 {[%clk 0:02:46.7]} 8. O-O {[%clk 0:02:53.9]}
8... O-O {[%clk 0:02:46.5]} 9. Ne2 {[%clk 0:02:49.9]} 9... h6 {[%clk 0:02:41.7]}
10. Ng3 {[%clk 0:02:48.7]} 10... Bh7 {[%clk 0:02:41.1]} 11. Bd2 {[%clk
0:02:45.6]} 11... Bxd2 {[%clk 0:02:38.5]} 12. Qxd2 {[%clk 0:02:44.2]} 12... Nbd7
{[%clk 0:02:39.4]} 13. b4 {[%clk 0:02:42.3]} 13... Qe7 {[%clk 0:02:38.2]} 14.
Rfc1 {[%clk 0:02:33.1]} 14... Rad8 {[%clk 0:02:36.2]} 15. Qc3 {[%clk 0:02:31.9]}
15... Rfe8 {[%clk 0:02:26.4]} 16. Bb3 {[%clk 0:02:12.2]} 16... a6 {[%clk
0:01:19.7]} 17. h3 {[%clk 0:01:52.1]} 17... Bg6 {[%clk 0:01:15.6]} 18. Ra2
{[%clk 0:01:44.9]} 18... Nd5 {[%clk 0:00:48.6]} 19. Bxd5 {[%clk 0:01:44.2]}
19... cxd5 {[%clk 0:00:49.5]} 20. Qb2 {[%clk 0:01:13.9]} 20... Rc8 {[%clk
0:00:43.3]} 21. Raa1 {[%clk 0:01:12]} 21... f6 {[%clk 0:00:41.6]} 22. Ne2 {[%clk
0:01:07.9]} 22... Nb6 {[%clk 0:00:40.2]} 23. Ng3 {[%clk 0:01:03.5]} 23... Nc4
{[%clk 0:00:34.9]} 24. Qb3 {[%clk 0:00:57.9]} 24... b6 {[%clk 0:00:32.3]} 25.
Ne2 {[%clk 0:00:45.4]} 25... Rc7 {[%clk 0:00:31.1]} 26. Nf4 {[%clk 0:00:43.4]}
26... Be4 {[%clk 0:00:29.8]} 27. a5 {[%clk 0:00:11.8]} 27... bxa5 {[%clk
0:00:23.2]} 28. bxa5 {[%clk 0:00:11.7]} 28... Bxf3 {[%clk 0:00:23.8]} 29. gxf3
{[%clk 0:00:11.2]} 29... Rec8 {[%clk 0:00:24.2]} 30. Qd1 {[%clk 0:00:04.3]}
30... Qd7 {[%clk 0:00:20.8]} 31. Qe1 {[%clk 0:00:03.9]} 31... e5 {[%clk
0:00:19.5]} 32. dxe5 {[%clk 0:00:04]} 32... fxe5 {[%clk 0:00:20.4]} 33. Nd3
{[%clk 0:00:03.4]} 33... Qxh3 {[%clk 0:00:20.1]} 34. Qe2 {[%clk 0:00:01.9]}
34... Rc6 {[%clk 0:00:18.1]} 0-1

[Event "Late-Titled-Tuesday-Blitz-May-28-2024"]
[Site "Chess.com"]
[Date "2024.05.28"]
[Round "2"]
[White "Zapateado"]
[Black "Statham_01"]
[Result "0-1"]
[WhiteElo "2374"]
[BlackElo "2697"]
[TimeControl "180+1"]
[EndTime "14:18:19 PDT"]
[Termination "Statham_01 won by resignation"]

1. c4 {[%clk 0:03:00]} 1... e5 {[%clk 0:03:00]} 2. Nc3 {[%clk 0:03:00.4]} 2...
Nf6 {[%clk 0:03:00.5]} 3. g3 {[%clk 0:03:01.3]} 3... c6 {[%clk 0:03:00.9]} 4.
Nf3 {[%clk 0:03:02]} 4... e4 {[%clk 0:03:00.8]} 5. Nd4 {[%clk 0:03:02.6]} 5...
d5 {[%clk 0:03:01.3]} 6. cxd5 {[%clk 0:03:03.5]} 6... cxd5 {[%clk 0:03:01.6]} 7.
d3 {[%clk 0:03:03.5]} 7... Nc6 {[%clk 0:03:00.8]} 8. Nxc6 {[%clk 0:03:03.7]}
8... bxc6 {[%clk 0:03:01.7]} 9. dxe4 {[%clk 0:03:04.3]} 9... d4 {[%clk
0:03:02.1]} 10. Nb1 {[%clk 0:03:04.7]} 10... Nxe4 {[%clk 0:02:59.7]} 11. Bg2
{[%clk 0:03:03.4]} 11... Bb4+ {[%clk 0:02:58.4]} 12. Bd2 {[%clk 0:03:02.6]}
12... Nxd2 {[%clk 0:02:56.1]} 13. Nxd2 {[%clk 0:03:03.5]} 13... O-O {[%clk
0:02:38.7]} 14. O-O {[%clk 0:02:57.2]} 14... Bg4 {[%clk 0:02:27.2]} 15. h3
{[%clk 0:02:44.5]} 15... Bh5 {[%clk 0:02:21.8]} 16. g4 {[%clk 0:02:44.6]} 16...
Bg6 {[%clk 0:02:21.8]} 17. Nb3 {[%clk 0:02:35.6]} 17... d3 {[%clk 0:01:58.1]}
18. e4 {[%clk 0:02:09.2]} 18... a5 {[%clk 0:01:44.8]} 19. f4 {[%clk 0:02:06.1]}
19... a4 {[%clk 0:01:37.9]} 20. Nd2 {[%clk 0:02:03.3]} 20... Qd4+ {[%clk
0:01:35.5]} 21. Kh2 {[%clk 0:02:02.5]} 21... Bxd2 {[%clk 0:01:28.1]} 22. Qxd2
{[%clk 0:02:03.4]} 22... Bxe4 {[%clk 0:01:28.1]} 23. Bxe4 {[%clk 0:01:58]} 23...
Qxe4 {[%clk 0:01:29]} 24. Rae1 {[%clk 0:01:57.4]} 24... Qd4 {[%clk 0:01:27.6]}
25. Rd1 {[%clk 0:01:55.7]} 25... Rab8 {[%clk 0:01:17.8]} 26. Rf2 {[%clk
0:01:42.4]} 26... c5 {[%clk 0:01:08.4]} 27. Kg2 {[%clk 0:01:30.5]} 27... c4
{[%clk 0:01:06]} 28. Rc1 {[%clk 0:01:28.5]} 28... Rfe8 {[%clk 0:01:00.4]} 29.
Qc3 {[%clk 0:01:26.5]} 29... Qe4+ {[%clk 0:00:57.7]} 30. Kg1 {[%clk 0:01:23.7]}
30... Rbc8 {[%clk 0:00:51.6]} 31. b3 {[%clk 0:01:22.8]} 31... axb3 {[%clk
0:00:43.8]} 32. axb3 {[%clk 0:01:22.9]} 32... h5 {[%clk 0:00:36.2]} 33. bxc4
{[%clk 0:01:13.2]} 33... Qe3 {[%clk 0:00:36.6]} 34. Kg2 {[%clk 0:01:06.9]} 34...
Qe4+ {[%clk 0:00:34.2]} 35. Kg1 {[%clk 0:01:07.4]} 35... Rc6 {[%clk 0:00:31.9]}
36. Qd2 {[%clk 0:00:43.1]} 36... hxg4 {[%clk 0:00:29.5]} 37. hxg4 {[%clk
0:00:43.8]} 37... Rh6 {[%clk 0:00:26.3]} 38. Rh2 {[%clk 0:00:35.9]} 38... Rxh2
{[%clk 0:00:25.3]} 39. Kxh2 {[%clk 0:00:36.8]} 39... Qf3 {[%clk 0:00:22.7]} 40.
Re1 {[%clk 0:00:17.3]} 40... Rxe1 {[%clk 0:00:21.3]} 41. Qxe1 {[%clk 0:00:18.2]}
41... Qe2+ {[%clk 0:00:21.6]} 0-1